bitfinex/quotes_SOLUSD_20250904
["timestamp","ask_amount","ask_price","bid_price","bid_amount"]
[1757025989142,0.06,203.77,203.74,13.59559401]
[1757025989432,0.78,203.83,203.76,22.41182829]
[1757025989622,0.78,203.83,203.79,17.50409371]
[1757025989821,0.78,203.83,203.79,55.34409371]
[1757025990235,0.06,203.83,203.79,59.70259341]
[1757025990616,0.06,203.83,203.79,61.66911341]
[1757025993038,0.06,203.83,203.79,66.12612553]
[1757025993342,0.78,203.83,203.79,66.10612553]
[1757025994234,0.72,203.82,203.79,66.10612553]
[1757025996420,0.72,203.82,203.79,28.28612553]
[1757025996629,0.72,203.82,203.79,66.10612553]
[1757025997726,0.78,203.8,203.79,58.28912613]
[1757025997930,0.78,203.8,203.79,60.23110583]
[1757025998124,0.78,203.8,203.79,22.41110583]
[1757025998430,0.78,203.8,203.79,60.23110583]
[1757026000432,0.06,203.8,203.79,64.13960553]
[1757026001043,0.06,203.8,203.79,64.63030674]
[1757026001247,0.06,203.8,203.79,65.08030674]
[1757026001547,0.06,203.8,203.79,67.04682673]
[1757026005140,0.06,203.8,203.79,66.59682673]
[1757026007847,0.06,203.8,203.79,58.77982733]
[1757026008043,1e-08,203.8,203.79,66.59682673]
[1757026008255,1e-08,203.8,203.79,67.04682673]
[1757026008638,0.06,203.83,203.8,13.59559401]
[1757026008958,0.06,203.83,203.82,17.50409371]
[1757026009567,0.74,203.83,203.82,17.50409371]
[1757026010056,0.06,203.83,203.82,22.41038357]
[1757026010239,0.74,203.83,203.82,22.41038357]
[1757026011652,0.06,203.83,203.82,22.41038357]
[1757026012340,0.06,203.83,203.82,24.37661357]
[1757026012542,0.06,203.83,203.82,24.86724255]
[1757026013341,0.74,203.83,203.82,60.21038357]
[1757026014257,0.74,203.83,203.82,22.41038357]
[1757026014459,0.74,203.83,203.82,60.21038357]
[1757026017757,0.74,203.83,203.82,22.41038357]
[1757026017957,0.74,203.83,203.82,60.21038357]
[1757026018955,0.74,203.83,203.82,22.41038357]
[1757026019162,0.74,203.83,203.82,60.21038357]
[1757026027156,0.06,203.83,203.82,60.21038357]
[1757026028256,0.06,203.83,203.82,57.24251285]
[1757026028436,0.74,203.83,203.82,22.41038357]
[1757026028641,0.74,203.83,203.82,60.21038357]
[1757026029057,0.06,203.83,203.82,60.21038357]
[1757026029258,0.06,203.83,203.82,56.30188387]
[1757026029560,0.06,203.83,203.82,60.21038357]
[1757026029735,0.74,203.83,203.82,60.21038357]
[1757026030179,0.74,203.83,203.82,18.50188387]
[1757026030180,0.06,203.83,203.82,18.50188387]
[1757026030460,0.74,203.83,203.82,55.30409371]
[1757026030648,0.74,203.83,203.82,37.8]
[1757026032152,0.74,203.83,203.82,41.7084997]
[1757026032859,0.74,203.83,203.82,60.21038357]
[1757026033058,0.74,203.83,203.82,55.30409371]
[1757026033262,0.74,203.83,203.82,37.8]
[1757026033449,0.74,203.83,203.82,41.7084997]
[1757026033850,0.74,203.83,203.82,40.29894656]
[1757026034843,0.06,203.83,203.82,58.80083043]
[1757026037147,0.74,203.83,203.81,2.49894656]
[1757026037461,0.06,203.83,203.82,40.29894656]
[1757026037863,0.75,203.83,203.82,40.29894656]
[1757026039362,0.75,203.83,203.82,2.49894656]
[1757026039665,0.75,203.83,203.82,40.29894656]
[1757026040244,0.75,203.83,203.82,45.20523642]
[1757026041266,0.75,203.83,203.82,40.29894656]
[1757026041573,0.75,203.83,203.82,37.8]
[1757026041766,0.75,203.83,203.82,40.29894656]
[1757026043352,0.75,203.83,203.82,37.8]
[1757026043755,0.75,203.83,203.81,2.49894656]
[1757026043972,0.69,203.82,203.8,2.52894656]
[1757026044156,0.06,203.83,203.81,40.29894656]
[1757026044767,0.75,203.83,203.82,2.49894656]
[1757026046046,0.75,203.83,203.81,40.29894656]
[1757026046249,0.69,203.82,203.81,40.29894656]
[1757026047474,0.69,203.82,203.81,2.49894656]
[1757026047774,0.69,203.82,203.81,37.8]
[1757026049874,0.69,203.82,203.81,40.29894656]
[1757026051354,0.69,203.82,203.81,37.8]
[1757026055187,0.69,203.82,203.81,39.7669068]
[1757026055879,0.69,203.82,203.81,37.8]
[1757026057400,0.69,203.82,203.8,0.03]
[1757026057401,31.59637376,203.82,203.8,0.03]
[1757026057701,6.15532266,203.81,203.8,0.03]
[1757026057861,9.81169298,203.81,203.8,0.03]
[1757026058062,17.93855874,203.81,203.8,0.03]
[1757026058494,14.28218264,203.81,203.8,0.03]
[1757026058983,10.62581232,203.81,203.8,0.03]
[1757026059184,15.53234291,203.81,203.8,0.03]
[1757026063067,13.03339635,203.81,203.8,0.03]
[1757026063276,15.53234291,203.81,203.8,0.03]
[1757026069497,25.52812915,203.81,203.8,0.03]
[1757026070201,26.0,203.78,203.77,0.03]
[1757026070399,28.49894656,203.78,203.77,0.03]
[1757026070592,29.17894656,203.78,203.77,0.03]
[1757026070774,31.14672421,203.78,203.77,0.03]
[1757026071810,36.05397712,203.78,203.77,0.03]
[1757026082116,33.55503056,203.78,203.77,0.03]
[1757026082291,36.05397712,203.78,203.77,0.03]
[1757026088011,33.55503056,203.78,203.77,0.03]
[1757026088309,36.05397712,203.78,203.77,0.03]
[1757026093517,37.46453481,203.78,203.77,0.03]
[1757026109712,41.56056696,203.78,203.77,0.03]
[1757026109915,37.46453481,203.78,203.77,0.03]
[1757026110119,41.58256799,203.78,203.77,0.03]
[1757026110429,37.46453481,203.78,203.77,0.03]
[1757026110631,41.58358512,203.78,203.77,0.03]
[1757026111214,40.90358512,203.78,203.77,0.03]
[1757026111431,36.78453481,203.78,203.77,0.03]
[1757026113429,32.87503056,203.78,203.77,0.03]
[1757026113632,4.11905031,203.8,203.77,0.48]
[1757026113633,3.96950425,203.8,203.77,0.48]
[1757026113930,0.06,203.8,203.77,0.48]
[1757026115324,26.06,203.8,203.77,0.48]
[1757026115641,0.06,203.8,203.78,3.90950425]
[1757026115817,0.06,203.8,203.77,8.84693013]
[1757026116016,0.06,203.8,203.79,0.45]
[1757026116435,0.06,203.8,203.79,4.35950425]
[1757026117239,0.06,203.8,203.79,0.45]
[1757026122360,0.06,203.8,203.77,1.99700352]
[1757026122541,0.06,203.8,203.77,0.03]
[1757026122749,0.06,203.8,203.77,0.48]
[1757026124063,0.06,203.8,203.78,0.45]
[1757026124266,0.06,203.8,203.79,17.99579947]
[1757026124463,0.06,203.8,203.77,0.48]
[1757026124762,3.96950425,203.8,203.77,0.03]
[1757026124971,3.90950425,203.78,203.77,0.03]
[1757026125341,3.96950425,203.8,203.77,0.03]
[1757026125555,7.8790085,203.8,203.77,0.48]
[1757026125754,0.06,203.8,203.78,0.45]
[1757026125963,3.96950425,203.8,203.77,0.03]
[1757026126163,0.06,203.8,203.77,0.48]
[1757026126342,3.96950425,203.8,203.77,0.48]
[1757026126659,0.06,203.8,203.77,0.48]
[1757026126865,3.96950425,203.8,203.77,0.48]
[1757026127958,4.60950425,203.78,203.77,0.03]
[1757026128157,3.90950425,203.78,203.77,0.03]
[1757026129452,4.60950425,203.78,203.77,0.03]
[1757026132473,0.7,203.78,203.77,0.03]
[1757026135682,11.29311027,203.8,203.77,0.03]
[1757026136356,15.20261452,203.8,203.77,0.03]
[1757026138268,3.90950425,203.79,203.77,0.03]
[1757026138568,29.90950425,203.78,203.77,0.03]
[1757026138869,35.51675716,203.78,203.77,0.03]
[1757026139370,37.4845348,203.78,203.77,0.03]
[1757026144766,41.60358511,203.78,203.77,0.03]
[1757026146671,37.4845348,203.78,203.77,0.03]
[1757026147351,41.60358511,203.78,203.77,0.03]
[1757026149352,37.4845348,203.78,203.77,0.03]
[1757026151560,75.3045348,203.78,203.77,0.03]
[1757026151760,79.39890461,203.78,203.77,0.03]
[1757026152072,75.48940036,203.78,203.77,0.03]
[1757026152264,79.39890461,203.78,203.77,0.03]
[1757026155571,77.99217429,203.78,203.77,0.03]
[1757026156071,40.17217429,203.78,203.77,0.03]
[1757026156278,73.85780448,203.78,203.77,0.03]
[1757026158372,36.07780448,203.78,203.77,0.03]
[1757026158580,73.85780448,203.78,203.77,0.03]
[1757026159271,36.07780448,203.78,203.77,0.03]
[1757026159481,73.85780448,203.78,203.77,0.03]
[1757026159970,36.07780448,203.78,203.77,0.03]
[1757026160284,73.85780448,203.78,203.77,0.03]
[1757026160581,36.07780448,203.78,203.77,0.03]
[1757026160775,73.85780448,203.78,203.77,0.03]
[1757026161184,36.07780448,203.78,203.77,0.03]
[1757026161480,73.85780448,203.78,203.77,0.03]
[1757026161780,36.07780448,203.78,203.77,0.03]
[1757026161986,73.85780448,203.78,203.77,0.03]
[1757026166394,33.57503055,203.78,203.77,0.03]
[1757026166568,36.07780448,203.78,203.77,0.03]
[1757026166768,73.85780448,203.78,203.77,0.03]
[1757026175293,77.94609998,203.78,203.77,0.03]
[1757026176190,37.66332605,203.78,203.77,0.03]
[1757026176491,0.06,203.8,203.77,0.48]
[1757026176688,4.96681233,203.8,203.77,0.48]
[1757026176893,0.06,203.8,203.78,2.50277393]
[1757026177189,26.06,203.8,203.79,0.45]
[1757026178091,30.96685666,203.8,203.79,0.45]
[1757026179191,31.66685666,203.8,203.77,0.03]
[1757026179379,2.50277393,203.79,203.77,0.03]
[1757026180189,4.90725291,203.78,203.77,0.03]
[1757026181499,2.50277393,203.78,203.77,0.03]
[1757026183483,33.41002684,203.78,203.77,0.03]
[1757026183877,34.11002684,203.78,203.77,0.03]
[1757026184078,71.89002684,203.78,203.77,0.03]
[1757026184894,73.85799811,203.78,203.77,0.03]
[1757026186292,73.15799811,203.78,203.77,0.03]
[1757026186490,73.85799811,203.78,203.77,0.03]
[1757026188895,30.90725291,203.78,203.77,0.48]
[1757026190381,30.90725291,203.78,203.77,0.03]
[1757026196906,33.41002684,203.78,203.77,0.03]
[1757026197093,71.88002684,203.78,203.77,0.03]
[1757026197289,73.84819177,203.78,203.77,0.03]
[1757026198183,87.44378578,203.78,203.77,0.03]
[1757026198392,92.9257432,203.78,203.77,0.03]
[1757026199205,87.44378578,203.78,203.77,0.03]
[1757026205418,49.66378578,203.78,203.77,0.03]
[1757026205616,87.44378578,203.78,203.77,0.03]
[1757026206218,13.59559401,203.77,203.75,1e-08]
[1757026206409,40.28277393,203.76,203.75,1e-08]
[1757026206719,40.97277393,203.76,203.75,1e-08]
[1757026206920,42.94113256,203.76,203.75,1e-08]
[1757026208202,47.84886714,203.76,203.75,1e-08]
[1757026209320,61.44446115,203.76,203.75,1e-08]
[1757026209523,61.44446115,203.76,203.69,0.03]
[1757026209524,2.50277393,203.7,203.69,0.03]
[1757026209698,40.28277393,203.7,203.69,0.03]
[1757026209898,55.08586454,203.7,203.69,0.03]
[1757026210094,57.05470759,203.7,203.69,0.03]
[1757026210415,61.96388775,203.7,203.69,0.03]
[1757026211419,51.95279203,203.7,203.69,0.03]
[1757026211611,61.96388775,203.7,203.69,0.03]
[1757026214031,61.9569356,203.7,203.69,0.03]
[1757026214420,57.86189286,203.7,203.69,0.03]
[1757026214821,61.79575013,203.7,203.69,0.03]
[1757026215130,51.78465441,203.7,203.69,0.03]
[1757026215427,48.5709395,203.7,203.69,0.03]
[1757026217427,53.22462755,203.7,203.69,0.03]
[1757026218015,49.2609395,203.7,203.69,0.03]
[1757026218216,53.16221654,203.7,203.69,0.03]
[1757026218826,49.2609395,203.7,203.69,0.03]
[1757026221018,53.17385579,203.7,203.69,0.03]
[1757026227925,15.39385579,203.7,203.69,0.03]
[1757026228121,53.17385579,203.7,203.69,0.03]
[1757026234848,15.39385579,203.7,203.69,0.03]
[1757026235049,53.17385579,203.7,203.69,0.03]
[1757026235544,15.39385579,203.7,203.69,0.03]
[1757026235846,53.17385579,203.7,203.69,0.03]
[1757026236148,15.39385579,203.7,203.69,0.03]
[1757026236348,53.17385579,203.7,203.69,0.03]
[1757026238034,6.87802321,203.7,203.69,0.48]
[1757026238346,34.82209645,203.7,203.69,0.48]
[1757026241438,0.06,203.72,203.69,0.48]
[1757026241746,26.0,203.71,203.69,0.48]
[1757026244049,26.0,203.71,203.7,0.45]
[1757026244428,26.0,203.71,203.69,0.03]
[1757026244634,29.91291629,203.71,203.69,0.03]
[1757026245229,3.91291629,203.71,203.69,0.03]
[1757026246245,8.82187505,203.71,203.69,0.03]
[1757026248644,3.91291629,203.71,203.69,0.03]
[1757026248849,30.96869986,203.72,203.69,0.03]
[1757026248850,26.06,203.72,203.69,0.03]
[1757026249051,34.88168305,203.72,203.69,0.03]
[1757026249553,35.57168305,203.72,203.69,0.03]
[1757026250338,34.88168305,203.72,203.7,0.45]
[1757026250538,34.88168305,203.72,203.69,0.03]
[1757026250734,26.06,203.72,203.69,0.03]
[1757026250935,0.06,203.72,203.7,4.36291629]
[1757026251146,0.06,203.72,203.71,4.36291629]
[1757026252548,0.06,203.72,203.71,9.27185546]
[1757026255560,0.06,203.72,203.71,22.86744947]
[1757026256060,0.06,203.72,203.71,24.83493674]
[1757026258144,0.06,203.72,203.71,25.32583065]
[1757026259440,0.06,203.75,203.72,13.59559401]
[1757026259663,0.06,203.75,203.74,17.5085103]
[1757026260260,0.06,203.75,203.74,17.9585103]
[1757026260950,0.06,203.75,203.74,22.86672665]
[1757026261668,0.06,203.75,203.74,24.83373016]
[1757026262052,0.06,203.77,203.75,13.59559401]
[1757026262252,0.06,203.8,203.79,39.59559401]
[1757026262559,0.06,203.8,203.79,90.53884706]
[1757026262752,0.06,203.8,203.79,90.98884706]
[1757026262958,0.06,203.8,203.79,92.95536706]
[1757026263566,0.06,203.8,203.79,92.99565992]
[1757026264866,0.06,203.82,203.8,13.59559401]
[1757026265059,0.06,203.82,203.81,17.99916335]
[1757026265369,0.06,203.83,203.82,26.0]
[1757026265664,0.06,203.83,203.82,86.21480016]
[1757026265842,0.06,203.83,203.82,86.23480016]
[1757026266164,0.06,203.83,203.82,86.68480016]
[1757026266350,0.06,203.83,203.82,88.65112681]
[1757026268363,0.06,203.86,203.83,13.59559401]
[1757026268587,0.06,203.86,203.83,18.44911521]
[1757026269261,0.06,203.86,203.84,17.9585103]
[1757026270554,0.06,203.86,203.84,22.86431877]
[1757026270970,0.06,203.86,203.84,24.83025885]
[1757026273472,0.06,203.86,203.85,13.59559401]
[1757026273654,0.06,203.87,203.85,52.31615079]
[1757026273854,0.06,203.87,203.86,14.04559401]
[1757026274364,1e-08,203.87,203.86,16.01124427]
[1757026274971,1e-08,203.87,203.86,20.91657145]
[1757026275760,1e-08,203.87,203.86,24.82948774]
[1757026276756,1e-08,203.87,203.86,24.37948774]
[1757026276959,0.69000001,203.87,203.86,24.37948774]
[1757026277167,0.69000001,203.87,203.86,62.17948774]
[1757026277569,0.69000001,203.87,203.86,60.76378351]
[1757026280567,1e-08,203.87,203.86,60.79378351]
[1757026287983,0.70000001,203.87,203.86,1.27565026]
[1757026288287,3.19721207,203.87,203.86,0.03]
[1757026288674,3.19721207,203.87,203.86,37.93]
[1757026289484,8.19369668,203.87,203.86,37.93]
[1757026289793,3.19721207,203.87,203.86,37.93]
[1757026290887,8.10229864,203.87,203.86,0.03]
[1757026291182,47.26093489,203.87,203.86,0.03]
[1757026293064,50.88079834,203.87,203.86,0.03]
[1757026294686,50.88377421,203.87,203.86,0.03]
[1757026295261,63.14649064,203.87,203.83,0.03]
[1757026295472,26.0,203.84,203.83,0.03]
[1757026295673,2.49721206,203.84,203.83,0.03]
[1757026295879,3.19721206,203.84,203.83,0.03]
[1757026296669,8.10302053,203.84,203.83,0.03]
[1757026297071,34.10302053,203.84,203.83,0.03]
[1757026297381,37.73189506,203.84,203.83,0.03]
[1757026298193,37.73277724,203.84,203.83,0.03]
[1757026300687,6.12696877,203.84,203.83,0.03]
[1757026300878,2.49721206,203.84,203.83,0.03]
[1757026301078,3.19721206,203.84,203.83,0.03]
[1757026301996,2.49721206,203.84,203.83,0.03]
[1757026304304,26.0,203.85,203.83,0.7]
[1757026304613,28.49721206,203.85,203.83,0.7]
[1757026306097,2.49721206,203.84,203.83,0.03]
[1757026306907,2.49721206,203.84,203.83,0.7]
[1757026307097,2.49721206,203.84,203.83,0.03]
[1757026307295,2.49721206,203.84,203.83,0.7]
[1757026308093,2.49721206,203.85,203.83,0.7]
[1757026308493,2.49721206,203.84,203.83,0.03]
[1757026310018,5.56561987,203.85,203.83,0.03]
[1757026310194,2.49721206,203.84,203.83,0.03]
[1757026310516,5.56561987,203.85,203.83,0.03]
[1757026310703,2.49721206,203.84,203.83,0.03]
[1757026311213,7.40302053,203.84,203.83,0.03]
[1757026311512,8.06302053,203.84,203.83,0.03]
[1757026311809,2.49721206,203.84,203.83,0.75]
[1757026312013,2.49721206,203.84,203.83,0.03]
[1757026315429,7.40302053,203.84,203.83,0.03]
[1757026316003,8.06302053,203.84,203.83,0.03]
[1757026316714,5.56580847,203.84,203.83,0.03]
[1757026316921,10.03041103,203.84,203.83,0.03]
[1757026318515,1.9673905,203.84,203.83,0.03]
[1757026318709,0.06,203.86,203.83,0.75]
[1757026318710,2.55721206,203.86,203.83,0.75]
[1757026318906,0.06,203.86,203.84,0.72]
[1757026319121,0.06,203.86,203.85,0.72]
[1757026319723,0.06,203.86,203.85,3.21721206]
[1757026320818,0.06,203.86,203.85,8.12277987]
[1757026322301,0.06,203.86,203.85,21.71837388]
[1757026323130,0.06,203.86,203.85,59.69837388]
[1757026323703,1e-08,203.87,203.86,13.59559401]
[1757026323928,1e-08,203.87,203.86,16.81280607]
[1757026324308,1e-08,203.87,203.86,18.77845634]
[1757026325318,1e-08,203.87,203.86,23.68378352]
[1757026326728,1e-08,203.88,203.86,23.68378352]
[1757026326924,1e-08,203.89,203.88,39.59559401]
[1757026327229,1e-08,203.89,203.88,46.99765205]
[1757026327428,1e-08,203.89,203.88,47.71765205]
[1757026328244,1e-08,203.89,203.88,85.69765205]
[1757026328711,1e-08,203.89,203.88,83.20043999]
[1757026328910,1e-08,203.89,203.88,85.69765205]
[1757026329415,1e-08,203.89,203.88,87.66330231]
[1757026331818,1e-08,203.89,203.88,47.18609025]
[1757026332123,1e-08,203.89,203.88,85.69765205]
[1757026332327,1e-08,203.89,203.88,86.18813664]
[1757026332704,1e-08,203.89,203.88,88.15369031]
[1757026333133,1e-08,203.89,203.88,85.16599366]
[1757026333441,1e-08,203.89,203.88,87.66320572]
[1757026334421,1e-08,203.89,203.88,49.68320572]
[1757026334632,1e-08,203.89,203.88,87.66320572]
[1757026334838,1e-08,203.89,203.88,88.15369031]
[1757026335610,1e-08,203.89,203.88,50.17369031]
[1757026335816,1e-08,203.89,203.88,85.67765205]
[1757026336031,1e-08,203.89,203.88,87.64330231]
[1757026337838,1e-08,203.89,203.88,85.67765205]
[1757026338136,1e-08,203.89,203.88,84.95765205]
[1757026338442,0.68000001,203.89,203.87,1.96565026]
[1757026338615,0.68,203.88,203.85,16.12280607]
[1757026338814,1e-08,203.89,203.87,13.59559401]
[1757026339232,1e-08,203.89,203.88,4.90484598]
[1757026339541,1e-08,203.89,203.87,18.5006404]
[1757026340538,1e-08,203.89,203.88,37.96]
[1757026341750,1e-08,203.89,203.88,42.86484598]
[1757026343537,1e-08,203.89,203.88,61.07323561]
[1757026346533,1e-08,203.89,203.88,63.03888587]
[1757026347845,1e-08,203.89,203.88,61.07323561]
[1757026348040,1e-08,203.89,203.88,57.17043999]
[1757026348249,1e-08,203.89,203.88,61.07323561]
[1757026350153,1e-08,203.89,203.88,63.06888587]
[1757026357255,1e-08,203.9,203.89,39.59559401]
[1757026357432,1e-08,203.9,203.89,44.20838963]
[1757026357832,1e-08,203.9,203.89,46.17375015]
[1757026358348,1e-08,203.9,203.89,47.17555995]
[1757026358557,1e-08,203.9,203.89,89.01835557]
[1757026360758,1e-08,203.9,203.89,92.92115119]
[1757026361752,1e-08,203.9,203.89,89.01835557]
[1757026363562,0.06,203.92,203.89,89.01835557]
[1757026363563,1e-08,203.92,203.89,89.01835557]
[1757026363768,1e-08,203.93,203.92,13.59559401]
[1757026363950,1e-08,203.93,203.92,55.90877801]
[1757026364277,1e-08,203.94,203.92,56.61877801]
[1757026364468,1e-08,203.94,203.93,18.20838963]
[1757026364662,1e-08,203.94,203.93,22.99910682]
[1757026365340,1e-08,203.94,203.93,31.80554584]
[1757026366745,1e-08,203.94,203.93,69.72554584]
[1757026367867,1e-08,203.94,203.93,69.70554584]
[1757026373566,1e-08,203.94,203.93,31.80554584]
[1757026373768,1e-08,203.94,203.93,69.68554584]
[1757026375759,1e-08,203.94,203.93,70.17591018]
[1757026376078,1e-08,203.94,203.93,70.15591018]
[1757026378481,1e-08,203.94,203.93,70.15591018]
[1757026380275,1e-08,203.94,203.93,70.13591018]
[1757026382182,1e-08,203.94,203.93,90.13591018]
[1757026382570,1e-08,203.94,203.93,86.23311456]
[1757026382770,1e-08,203.94,203.93,90.13591018]
[1757026383879,1e-08,203.94,203.93,90.16591018]
[1757026386286,1e-08,203.94,203.93,170.16591018]
[1757026386582,1e-08,203.94,203.93,165.77275022]
[1757026386882,1e-08,203.94,203.93,169.67554584]
[1757026387383,1e-08,203.94,203.93,149.67554584]
[1757026387688,1e-08,203.94,203.93,169.67554584]
[1757026390502,1e-08,203.94,203.93,169.61554584]
[1757026391298,1e-08,203.97,203.96,39.59559401]
[1757026391496,1e-08,203.97,203.96,43.49838963]
[1757026391787,1e-08,203.97,203.96,81.39838963]
[1757026391997,0.67000001,203.97,203.96,81.43838963]
[1757026392186,1e-08,203.99,203.97,13.59559401]
[1757026392382,0.67000001,203.99,203.98,44.49803542]
[1757026392692,0.67000001,203.99,203.98,86.52083104]
[1757026392874,1e-08,203.99,203.98,90.42362666]
[1757026393074,1e-08,203.99,203.98,91.5738708]
[1757026394291,1e-08,203.99,203.98,65.5738708]
[1757026396589,1e-08,203.99,203.98,61.01107518]
[1757026396895,1e-08,203.99,203.98,64.42362666]
[1757026398025,1e-08,203.99,203.98,145.12362666]
[1757026399606,1e-08,203.99,203.98,104.89453017]
[1757026399792,1e-08,203.99,203.98,143.01453017]
[1757026399988,1e-08,203.99,203.98,143.71453017]
[1757026401979,1e-08,203.99,203.98,153.68932669]
[1757026403782,1e-08,203.99,203.98,105.59453017]
[1757026403983,1e-08,203.99,203.98,143.75453017]
[1757026404204,1e-08,203.99,203.98,143.73453017]
[1757026404986,1e-08,203.99,203.98,103.10083104]
[1757026405184,1e-08,203.99,203.98,143.73453017]
[1757026405791,1e-08,203.99,203.98,102.40083104]
[1757026405992,1e-08,203.99,203.98,63.05453017]
[1757026405993,0.72000001,203.99,203.98,63.05453017]
[1757026406189,1e-08,203.99,203.98,63.05453017]
[1757026407510,1e-08,203.99,203.98,22.40083104]
[1757026407690,0.72000001,203.99,203.98,63.05453017]
[1757026409117,0.72000001,203.99,203.98,22.40083104]
[1757026409402,0.72000001,203.99,203.98,60.56083104]
[1757026409607,0.72000001,203.99,203.98,55.65838963]
[1757026409792,0.72000001,203.99,203.98,13.59559401]
[1757026410108,0.72000001,203.99,203.98,56.65803542]
[1757026412618,0.72000001,203.99,203.98,60.34197869]
[1757026412619,1e-08,203.99,203.98,60.34197869]
[1757026412790,1e-08,203.99,203.98,75.21756723]
[1757026413790,1e-08,203.99,203.98,27.08277071]
[1757026413998,1e-08,203.99,203.98,65.38277071]
[1757026414312,1e-08,203.99,203.98,75.35756723]
[1757026417308,0.92,204.06,204.02,39.59559401]
[1757026417506,0.92,204.06,204.05,16.08929314]
[1757026417708,0.92,204.06,204.05,54.34929314]
[1757026417908,0.92,204.06,204.05,56.31330267]
[1757026418997,0.92,204.06,204.05,51.83559401]
[1757026420209,0.92,204.06,204.05,56.73635362]
[1757026420412,3.41369913,204.06,204.03,2.69369913]
[1757026420714,2.49369913,204.04,203.99,18.49779509]
[1757026420898,3.21369913,204.03,204.01,13.59559401]
[1757026421091,3.21369913,204.03,204.0,38.28]
[1757026421092,2.49369913,204.03,204.02,51.87559401]
[1757026421702,3.21369913,204.03,204.02,51.87559401]
[1757026423915,0.72,204.03,204.02,51.87559401]
[1757026424098,3.21369913,204.03,204.02,51.87559401]
[1757026425205,3.21369913,204.03,204.02,13.59559401]
[1757026425404,3.21369913,204.03,204.02,51.85559401]
[1757026425609,0.72,204.03,204.02,51.83559401]
[1757026427522,0.72,204.03,204.02,13.59559401]
[1757026427820,0.72,204.03,204.02,51.83559401]
[1757026429419,0.72,204.03,204.02,13.59559401]
[1757026429724,0.72,204.03,204.02,51.79559401]
[1757026430020,0.72,204.03,204.02,38.2]
[1757026431924,0.2,204.06,204.03,13.59559401]
[1757026432122,0.9,204.06,204.04,38.34]
[1757026432334,0.2,204.06,204.04,38.34]
[1757026432501,0.7,204.05,204.04,38.34]
[1757026433314,0.2,204.06,204.04,43.2409998]
[1757026433804,0.2,204.06,204.03,16.08929314]
[1757026433805,0.9,204.06,204.03,20.99046942]
[1757026434012,2.49369913,204.04,203.98,0.03]
[1757026434229,2.49369913,204.01,204.0,13.59559401]
[1757026434413,3.19369913,204.01,204.0,38.36]
[1757026436830,3.19369913,204.01,204.0,43.26196078]
[1757026437130,3.19369913,204.01,204.0,4.90196078]
[1757026437505,3.19369913,204.01,204.0,43.24196078]
[1757026438930,3.19369913,204.01,203.99,0.03]
[1757026438931,3.19369913,204.01,203.99,13.62559401]
[1757026439132,2.49369913,204.0,203.99,13.62559401]
[1757026439314,2.49369913,204.0,203.99,51.94559401]
[1757026439637,3.19369913,204.0,203.99,0.03]
[1757026439824,13.16849565,204.0,203.99,38.37]
[1757026440026,13.16849565,204.0,203.99,0.03]
[1757026440230,13.16849565,204.0,203.99,38.37]
[1757026443913,13.16849565,204.0,203.99,0.03]
[1757026446322,18.07045643,204.0,203.99,0.03]
[1757026447632,13.16849565,204.0,203.99,0.03]
[1757026455354,13.22849565,204.0,203.99,0.03]
[1757026458456,12.52849565,204.0,203.99,0.03]
[1757026460563,13.17849565,204.0,203.99,0.03]
[1757026460953,12.52849565,204.0,203.99,0.03]
[1757026461644,7.8621263,204.0,203.99,0.03]
[1757026463257,12.76408708,204.0,203.99,0.03]
[1757026463764,12.76408708,204.0,203.99,0.74]
[1757026463765,3.96106315,204.0,203.99,0.74]